bitfinex/quotes_ETHUSD_20260310
["timestamp","ask_amount","ask_price","bid_price","bid_amount"]
[1773169529891,1.092,2037.9,2037.5,0.02312814]
[1773169530421,1.092,2037.9,2037.6,1.22693364]
[1773169530603,1.092,2037.9,2037.4,1.22812032]
[1773169530604,2.31876619,2037.9,2037.4,1.22812032]
[1773169531282,1.22651228,2038.3,2037.4,1.71904087]
[1773169531999,0.46096246,2038.2,2037.4,0.0011]
[1773169532521,1.22663264,2038.1,2037.4,0.0011]
[1773169534516,1.6875951,2038.1,2037.4,0.0011]
[1773169536725,1.22746977,2038.4,2037.7,0.49092055]
[1773169536931,0.001,2038.4,2037.7,0.49092055]
[1773169537101,1.22746744,2038.4,2037.8,0.49092055]
[1773169537431,0.001,2038.4,2037.8,0.49092055]
[1773169537726,1.22745671,2038.4,2037.8,0.49092055]
[1773169537921,1.22745671,2038.4,2037.6,0.49202055]
[1773169538295,1.22745671,2038.4,2037.7,0.52623107]
[1773169538619,1.22745671,2038.4,2037.8,1.22681322]
[1773169538620,0.001,2038.4,2037.8,1.22681322]
[1773169538819,0.001,2038.4,2037.8,1.71773377]
[1773169539217,0.001,2038.4,2037.6,1.22798629]
[1773169539525,0.001,2038.4,2037.7,0.49092055]
[1773169540719,0.001,2038.4,2037.8,1.71773377]
[1773169541393,0.001,2038.4,2037.9,0.49092055]
[1773169543495,0.32995517,2038.7,2038.1,0.49092055]
[1773169544386,1e-08,2038.7,2038.2,0.49092055]
[1773169544794,0.32967519,2039.3,2038.5,0.49092055]
[1773169545106,0.32967519,2039.3,2038.8,0.49092055]
[1773169545734,0.32967519,2039.3,2038.9,1.22615135]
[1773169546223,0.32967519,2039.3,2038.9,1.7170719]
[1773169546828,0.26547842,2039.3,2039.0,2.86070419]
[1773169547029,0.001,2039.6,2039.1,0.45406885]
[1773169547327,1.22675175,2039.6,2038.9,1.22615135]
[1773169547507,0.001,2039.6,2038.9,1.6802202]
[1773169547708,1.22673375,2039.6,2038.9,1.6802202]
[1773169548150,0.001,2039.6,2038.9,1.6802202]
[1773169548846,0.45817043,2039.6,2038.6,1.68035622]
[1773169549216,0.001,2039.4,2038.8,0.45596806]
[1773169549420,0.001,2039.6,2038.8,0.45596806]
[1773169550752,0.001,2039.6,2038.9,1.22615135]
[1773169550947,0.001,2039.6,2038.6,1.22627967]
[1773169550948,0.46572655,2039.6,2038.6,1.22627967]
[1773169551150,0.46572655,2039.6,2038.6,1.71459694]
[1773169551354,0.001,2039.6,2038.7,0.45596806]
[1773169552426,0.001,2039.6,2038.8,0.03234603]
[1773169552628,0.001,2039.6,2038.8,0.45596806]
[1773169552815,0.001,2039.6,2038.9,1.22615135]
[1773169555545,0.46572655,2039.6,2038.8,1.22617058]
[1773169557167,0.46572655,2039.6,2038.7,0.45596806]
[1773169557476,0.46572655,2039.6,2038.2,5.36205782]
[1773169557644,0.46472655,2039.3,2038.2,1.22657246]
[1773169557846,0.46472655,2039.1,2038.2,1.22657246]
[1773169558744,0.46472655,2039.0,2037.9,1.68270535]
[1773169559161,0.46472655,2039.0,2038.0,0.48994186]
[1773169559944,1.22615135,2038.9,2038.1,1.22663264]
[1773169560167,1.22615135,2038.9,2038.2,0.03397046]
[1773169560343,1.22603109,2039.1,2038.3,0.03396879]
[1773169560551,1.22603109,2039.1,2038.3,0.45596806]
[1773169560876,1.22603109,2039.1,2038.4,0.49718966]
[1773169561078,1.22579063,2039.5,2038.5,0.45596806]
[1773169561277,1.22579063,2039.5,2038.2,5.83827068]
[1773169561278,1.22677771,2039.6,2038.8,0.45596806]
[1773169561578,0.001,2039.4,2038.4,0.45596806]
[1773169561872,0.001,2039.4,2038.2,0.15058499]
[1773169561873,0.001,2039.4,2038.6,0.45596806]
[1773169562071,0.001,2039.4,2038.8,1.68217955]
[1773169563068,0.001,2039.4,2038.8,1.22621149]
[1773169563660,0.001,2039.4,2038.6,1.22633179]
[1773169563985,0.46572655,2039.4,2038.6,1.22633179]
[1773169564360,1.22591085,2039.3,2038.6,1.22633179]
[1773169566290,1.2268528,2039.4,2038.8,2.40663534]
[1773169566462,0.001,2039.4,2039.0,1.22609122]
[1773169567290,0.001,2039.4,2038.9,1.26782714]
[1773169567463,0.46572655,2039.4,2038.6,1.22629011]
[1773169568276,0.001,2039.4,2038.6,1.68225817]
[1773169569408,0.46472655,2039.2,2038.2,1.22763491]
[1773169569592,1.09,2039.2,2038.4,0.45596806]
[1773169569790,1.09,2039.2,2038.5,0.47756109]
[1773169569989,0.001,2039.4,2038.5,0.45596806]
[1773169570193,0.001,2039.4,2038.5,0.50418694]
[1773169570360,0.001,2039.4,2038.5,0.45596806]
[1773169570792,1.22685074,2039.4,2038.6,1.22633179]
[1773169571195,0.001,2039.4,2038.7,0.45596806]
[1773169571515,0.001,2039.6,2039.0,0.45596806]
[1773169571674,0.001,2039.6,2039.0,0.49953747]
[1773169571874,0.001,2039.6,2039.0,0.45596806]
[1773169572767,0.001,2039.6,2039.1,1.22603109]
[1773169573498,0.001,2039.6,2039.0,5.36009242]
[1773169573499,0.46572655,2039.6,2038.4,1.48296806]
[1773169574273,0.46572655,2039.6,2038.7,0.0011]
[1773169574792,0.001,2039.2,2038.7,0.0011]
[1773169576009,0.001,2039.2,2038.7,0.45706806]
[1773169577010,0.001,2039.2,2038.8,1.22621149]
[1773169578284,0.001,2039.2,2038.7,1.22732163]
[1773169579012,0.001,2039.2,2038.7,0.0011]
[1773169583096,0.001,2039.2,2038.7,0.48664221]
[1773169583695,0.001,2039.2,2038.8,1.22621149]
[1773169584820,0.001,2039.2,2038.7,1.71287907]
[1773169586426,0.001,2039.2,2038.7,1.22733686]
[1773169586829,0.001,2039.2,2038.7,0.0011]
[1773169586830,0.45202686,2039.2,2038.7,0.0011]
[1773169586998,0.45202686,2039.2,2038.9,0.0011]
[1773169587330,0.45202686,2039.2,2038.7,0.0011]
[1773169587622,0.45202686,2039.2,2038.5,1.22746933]
[1773169588203,0.45202686,2039.2,2038.5,0.0011]
[1773169588418,1.67705795,2039.1,2038.5,0.0011]
[1773169591131,1.22700526,2039.2,2038.5,0.48664221]
[1773169591326,1.22698872,2039.2,2038.5,0.48664221]
[1773169592030,1.22698872,2039.2,2038.5,0.0011]
[1773169592031,0.45102686,2039.1,2038.5,0.0011]
[1773169592225,1.22698872,2039.2,2038.5,0.0011]
[1773169593412,0.001,2039.2,2038.6,0.48554221]
[1773169594313,0.001,2039.2,2038.5,1.22749195]
[1773169594930,0.45202686,2039.2,2038.5,1.22749195]
[1773169595438,0.001,2039.2,2038.5,1.71303416]
[1773169595731,1.22579523,2039.5,2038.8,2.89017235]
[1773169596105,4.90410987,2039.6,2038.8,2.89017235]
[1773169596106,1.22676435,2039.6,2038.9,0.48554221]
[1773169596300,0.001,2039.6,2038.9,0.48554221]
[1773169596506,1.22673062,2039.6,2038.9,0.48554221]
[1773169597243,0.45102686,2039.5,2038.5,1.22749195]
[1773169597738,1.22585074,2039.4,2038.6,0.48554221]
[1773169598042,0.45102686,2039.3,2038.5,1.22749195]
[1773169599236,0.45102686,2039.3,2038.7,0.0011]
[1773169600015,0.45102686,2039.1,2038.7,0.0011]
[1773169600533,0.45102686,2039.1,2038.5,0.0011]
[1773169602876,0.45102686,2038.9,2038.5,0.0011]
[1773169604972,0.45102686,2038.7,2038.5,0.0011]
[1773169605285,0.45102686,2038.7,2038.2,0.0011]
[1773169605579,2.40463014,2038.5,2037.6,0.0011]
[1773169605869,0.45102686,2038.4,2037.6,0.0011]
[1773169606668,0.49816375,2038.1,2037.6,0.0011]
[1773169606873,2.40463014,2038.2,2037.4,0.0011]
[1773169606874,0.49816375,2037.7,2037.4,0.0011]
[1773169607038,0.49816375,2037.7,2037.1,0.0011]
[1773169608859,0.49816375,2037.2,2036.0,1.68628337]
[1773169609070,1.58616375,2037.1,2036.1,0.0491135]
[1773169609990,1.58616375,2037.1,2036.1,0.52962074]
[1773169610176,1.58616375,2037.1,2036.1,0.48050724]
[1773169610997,1.68950264,2037.0,2036.2,0.02812186]
[1773169611158,1.68950264,2037.0,2036.1,0.5086291]
[1773169612049,1.68950264,2037.0,2036.1,2.91325924]
[1773169612252,1.22733939,2037.0,2036.8,0.0011]
[1773169612466,1.22733939,2037.0,2036.3,0.02811909]
[1773169612686,2.31525542,2037.1,2036.3,0.02811909]
[1773169612898,1.22720507,2037.2,2036.3,2.91325647]
[1773169613061,1.22720507,2037.2,2036.4,1.22765664]
[1773169613261,1.22720507,2037.2,2036.5,0.02811632]
[1773169614276,1.22710431,2037.4,2036.5,0.50862356]
[1773169614466,1.68914179,2037.6,2036.6,2.88513738]
[1773169614666,0.46216325,2037.5,2036.6,0.48050724]
[1773169614879,0.46216325,2037.5,2036.4,1.70816388]
[1773169615081,1.6891995,2037.5,2036.5,0.48050724]
[1773169615299,7.40058523,2037.8,2036.7,0.48050724]
[1773169615300,2.95547805,2037.8,2036.7,0.48050724]
[1773169615506,1.22687767,2037.7,2036.7,0.48050724]
[1773169615787,0.46216325,2037.6,2036.4,1.22765664]
[1773169615992,0.46216325,2037.5,2036.4,1.22765664]
[1773169616492,0.46216325,2037.5,2036.5,0.48050724]
[1773169618165,1.68921733,2037.4,2036.6,1.22753608]
[1773169618570,0.46216325,2037.3,2036.6,1.22753608]
[1773169618771,1.22705408,2037.4,2036.6,1.22753608]
[1773169619684,1.689143,2037.6,2036.7,0.48050724]
[1773169620197,1.68919141,2037.5,2036.8,1.22741555]
[1773169620494,0.46216325,2037.4,2036.5,1.22759636]
[1773169620804,0.46216325,2037.4,2036.4,5.39102433]
[1773169620805,0.46216325,2037.4,2036.4,1.22762562]
[1773169621004,0.46216325,2037.4,2036.2,1.22777723]
[1773169621298,0.46216325,2037.3,2036.2,1.22777723]
[1773169621502,0.46216325,2037.1,2036.2,1.22777723]
[1773169621699,0.46216325,2037.0,2036.0,1.22789783]
[1773169622303,0.46216325,2036.4,2035.7,0.62750892]
[1773169622477,0.46216325,2036.1,2035.3,1.22827252]
[1773169622864,0.46216325,2035.9,2035.0,1.22846582]
[1773169623075,1.089,2036.3,2034.8,1.38905774]
[1773169623076,0.46216325,2035.5,2034.8,1.38905774]
[1773169623288,0.46216325,2035.9,2034.9,0.48050724]
[1773169623606,0.46216325,2035.8,2035.0,0.04914004]
[1773169623910,0.46216325,2035.8,2034.8,1.43821183]
[1773169624111,0.46216325,2035.8,2034.9,0.04914246]
[1773169624274,1.089,2036.1,2035.1,0.48050724]
[1773169624471,3.88295305,2036.3,2035.2,0.48050724]
[1773169624684,0.46216325,2036.1,2035.1,0.0011]
[1773169625379,3.88295305,2036.3,2035.1,0.53074487]
[1773169625573,1.68984913,2036.4,2035.3,0.48050724]
[1773169625876,2.64517803,2036.6,2035.6,0.48050724]
[1773169626073,1.41763204,2036.6,2035.6,0.48050724]
[1773169626276,1.55618064,2036.6,2035.7,1.22807879]
[1773169628515,0.32863204,2036.6,2035.7,4.11321617]
[1773169628723,0.32863204,2036.6,2035.8,0.48050724]
[1773169629083,2.01833613,2036.6,2035.7,1.22807879]
[1773169629312,2.01833613,2036.6,2035.2,6.42796977]
[1773169629313,0.46216325,2036.5,2035.2,6.42796977]
[1773169629578,0.46216325,2036.2,2035.3,1.22832014]
[1773169629774,0.46216325,2036.2,2035.4,0.04149265]
[1773169630008,1.088,2036.2,2035.4,0.52199989]
[1773169630177,2.01833613,2036.6,2035.5,0.48050724]
[1773169630378,2.01833613,2036.6,2035.6,0.52199581]
[1773169630698,2.01833613,2036.6,2035.7,1.22807879]
[1773169630904,2.01833613,2036.6,2035.8,0.04148449]
[1773169632125,1.088,2036.7,2035.9,0.04148244]
[1773169632324,1.22753608,2036.6,2035.9,0.48050724]
[1773169632825,0.32895275,2036.7,2036.1,0.48050724]
[1773169633206,0.32895275,2036.7,2036.1,0.49693739]
[1773169633603,1.22714538,2037.3,2036.4,0.48050724]
[1773169634014,0.32957029,2037.4,2036.6,0.48050724]
[1773169634804,0.32957029,2037.4,2036.7,1.22747581]
[1773169635140,0.32957029,2037.4,2036.8,2.88513738]
[1773169635425,1.55663187,2037.4,2036.7,1.22747581]
[1773169635925,0.32957029,2037.4,2036.8,0.48050724]
[1773169637015,0.32957029,2037.4,2036.9,1.22735529]
[1773169637405,0.001,2037.2,2037.0,2.88513738]
[1773169637599,0.32957029,2037.4,2037.0,2.88513738]
[1773169638227,1.5566432,2037.4,2036.4,5.39112644]
[1773169638629,1.5566432,2037.4,2036.5,0.48050724]
[1773169639131,1.5566432,2037.4,2036.6,1.22753608]
[1773169639445,0.32957029,2037.4,2036.7,0.47541212]
[1773169639734,0.32957029,2037.4,2037.0,0.47541212]
[1773169641015,4.90566129,2038.5,2037.2,2.40463014]
[1773169641219,1.71935592,2038.6,2037.7,1.22687343]
[1773169641543,0.49301571,2038.5,2037.4,4.90808641]
[1773169641757,0.49301571,2038.5,2037.1,0.47541212]
[1773169641905,0.49301571,2038.5,2037.3,0.47541212]
[1773169642554,1.22634021,2038.6,2037.6,0.47541212]
[1773169643247,1.71935592,2038.6,2037.7,1.22687343]
[1773169643544,1.71935592,2038.6,2037.4,1.22705408]
[1773169643836,0.49301571,2038.5,2037.4,1.22705408]
[1773169644241,0.49301571,2038.4,2037.3,1.7024854]
[1773169644714,0.49301571,2038.4,2037.0,1.22729504]
[1773169645228,0.49301571,2038.4,2037.1,0.47541212]
[1773169645626,0.49301571,2038.2,2036.7,1.70282767]
[1773169645830,0.49301571,2038.0,2036.8,4.9095435]
[1773169646034,0.49301571,2038.0,2036.9,0.47541212]
[1773169646221,1.085,2038.1,2036.9,0.47541212]
[1773169647134,1.57801571,2038.1,2036.9,0.47541212]
[1773169647353,0.49301571,2038.0,2036.9,0.47541212]
[1773169647645,1.71976874,2037.9,2037.0,1.22729504]
[1773169648416,1.22674171,2038.0,2037.1,0.47541212]
[1773169648617,2.31166677,2038.1,2037.1,0.47541212]
[1773169648845,2.31163483,2038.1,2037.1,0.47541212]
[1773169649033,1.22663483,2038.1,2037.1,0.47541212]
[1773169649238,4.905979,2038.4,2037.4,0.47541212]
[1773169649413,1.55550094,2038.7,2037.7,0.47541212]
[1773169649752,0.32920286,2038.7,2038.0,0.47541212]
[1773169649968,0.12920286,2038.7,2038.3,0.47541212]
[1773169650119,1e-08,2038.7,2038.3,0.47541212]
[1773169650462,0.001,2039.0,2038.5,2.40800653]
[1773169650614,0.001,2039.0,2038.6,0.47541212]
[1773169651052,0.001,2039.4,2038.8,2.88341865]
[1773169651458,0.001,2039.4,2038.8,0.47541212]
[1773169651629,0.001,2039.4,2038.9,1.70156347]
[1773169652655,0.001,2039.4,2038.7,1.22627164]
[1773169652817,0.001,2039.4,2038.7,3.63427817]
[1773169653148,0.001,2039.4,2038.8,0.47541212]
[1773169654154,0.001,2039.4,2038.9,1.22615135]
[1773169654353,0.001,2039.4,2038.6,1.22633179]
[1773169655256,0.001,2039.4,2038.8,2.40800653]
[1773169655425,0.001,2039.4,2038.8,2.88341865]
[1773169655848,0.001,2039.4,2038.8,2.40800653]
[1773169656035,0.001,2039.6,2039.0,1.70150334]
[1773169656360,4.90055173,2040.6,2039.5,2.40800653]
[1773169656528,1.22512986,2040.6,2039.6,0.47541212]
[1773169656729,0.32894112,2040.8,2040.1,2.40800653]
[1773169657149,1.22482136,2041.2,2040.4,2.40800653]
[1773169657731,1.22482136,2041.2,2040.2,0.47541212]
[1773169658063,0.49301571,2041.1,2039.7,0.47541212]
[1773169658263,0.49301571,2041.1,2039.9,2.88341865]
[1773169658564,6.47261875,2041.4,2040.2,2.40800653]
[1773169658772,0.49301571,2041.3,2039.9,2.40800653]
[1773169659254,0.49301571,2041.2,2039.8,5.37775006]
[1773169660041,0.49301571,2041.0,2040.1,1.22543012]
[1773169660661,1.71777208,2041.3,2040.3,2.40800653]
[1773169660824,1.22467974,2041.4,2040.6,2.40800653]
[1773169661028,1.22563359,2041.5,2040.6,2.40800653]
[1773169661647,0.001,2041.5,2040.9,2.40800653]
[1773169661850,0.001,2041.5,2040.7,0.47541212]
[1773169662049,0.001,2041.2,2040.7,0.47541212]
[1773169662364,0.001,2041.5,2041.1,2.40800653]
[1773169663641,0.001,2041.5,2040.8,1.2250098]
[1773169663840,0.49401571,2041.5,2040.6,1.22511017]
[1773169664766,1.22464975,2041.4,2040.4,4.90051945]
[1773169664968,1.22464975,2041.4,2040.4,1.22524995]
[1773169665677,1.71766546,2041.4,2040.4,1.22524995]
[1773169665863,1.22563715,2041.5,2040.6,2.40800653]
[1773169666036,1.2256013,2041.5,2040.6,2.88341865]
[1773169666236,1.2256013,2041.5,2040.4,1.70066207]
[1773169666747,0.4615723,2041.5,2040.4,1.70066207]
[1773169668168,0.4615723,2041.5,2040.4,1.22524995]
[1773169668668,0.001,2041.5,2040.5,2.89364257]
[1773169668838,0.001,2041.5,2040.6,1.22512986]
[1773169669371,0.45149937,2041.5,2040.6,1.22512986]
[1773169669540,0.45149937,2041.5,2040.5,1.70812356]
[1773169671170,1.22559894,2041.5,2040.9,2.40800653]
[1773169671370,1.22559894,2041.5,2040.7,0.48297745]
[1773169672238,1.22559894,2041.5,2040.5,3.63315264]
[1773169672456,1.22559894,2041.5,2040.6,0.48297745]
[1773169672977,0.001,2041.5,2041.1,2.40800653]
[1773169673173,0.001,2041.5,2041.2,1.22476974]
[1773169674159,1.22419033,2042.2,2041.3,0.48297745]
[1773169674440,0.45049937,2042.2,2041.2,1.22476974]
[1773169674652,0.45049937,2042.1,2040.8,4.89994257]
[1773169674852,0.001,2041.3,2040.8,4.89994257]
[1773169675053,0.001,2041.3,2040.7,1.22506982]
[1773169675376,0.001,2041.3,2040.6,4.11716975]
[1773169675551,4.89681208,2042.2,2041.2,2.40800653]
[1773169675754,0.45049937,2042.1,2041.0,0.48297745]
[1773169675966,0.45049937,2042.1,2040.8,0.48297745]
[1773169676561,2.8585059,2042.1,2040.8,0.48297745]
[1773169676789,0.45049937,2041.8,2040.6,3.6341923]
[1773169676965,1.076,2041.7,2040.7,0.48297745]
[1773169677164,1.22428991,2042.0,2041.2,1.22476974]
[1773169677375,1.6747768,2042.1,2041.2,1.22476974]
[1773169677571,1.22427743,2042.1,2041.2,1.70774719]
[1773169678297,1.22514331,2042.3,2041.5,0.48297745]
[1773169678492,0.001,2042.3,2041.5,0.48297745]
[1773169678662,1.22511445,2042.3,2041.5,0.48297745]
[1773169678862,1.22511445,2042.3,2041.6,2.40800653]
[1773169678863,0.001,2042.3,2041.6,2.40800653]
[1773169679076,1.22511234,2042.3,2041.6,2.40800653]
[1773169679280,0.001,2042.3,2041.6,1.22452978]
[1773169679950,0.001,2042.3,2041.2,2.89098398]
[1773169680183,0.001,2042.3,2041.3,1.22470974]
[1773169680394,0.45149937,2042.3,2041.0,1.22488975]
[1773169680769,1.075,2042.2,2041.0,1.22488975]
[1773169680971,0.45049937,2042.1,2041.0,1.22488975]
[1773169681285,1.22428991,2042.0,2041.2,2.89098398]
[1773169681588,4.89677538,2042.2,2041.2,2.89098398]
[1773169681885,5.34727475,2042.2,2041.2,0.48297745]
[1773169684306,5.34727475,2042.2,2041.3,1.22470974]
[1773169684510,1.22515629,2042.3,2041.4,0.48297745]
[1773169684804,1.22473162,2043.0,2042.1,0.48297745]
[1773169685101,0.45049937,2042.9,2041.8,3.44300653]
[1773169685307,0.45049937,2042.9,2041.8,1.035]
[1773169685515,1.22473162,2043.0,2042.1,2.40800653]
[1773169685882,1.22473162,2043.0,2041.9,0.48297745]
[1773169685883,0.45049937,2042.9,2041.8,3.44300653]
[1773169686084,0.45049937,2042.9,2041.8,3.92598398]
[1773169686273,1.22381045,2042.8,2041.9,1.22434987]
[1773169686490,0.45049937,2042.7,2041.8,1.22436207]
[1773169686975,1.22469552,2043.0,2042.1,2.89098398]
[1773169687199,1.22470357,2043.0,2042.1,2.89098398]
[1773169687504,0.001,2043.0,2042.1,2.89098398]
[1773169687811,1.22469508,2043.0,2042.1,2.89098398]
[1773169688387,1.22469508,2043.0,2042.2,1.22417001]
[1773169688598,1.67519445,2043.0,2042.2,1.22417001]
[1773169690013,0.001,2043.0,2042.2,1.70714746]
[1773169690580,0.001,2043.0,2042.4,2.40800653]
[1773169691017,0.001,2043.0,2042.2,1.70714746]
[1773169691390,0.001,2043.0,2042.0,4.89714171]
[1773169691603,0.45049937,2042.9,2041.6,0.48297745]
[1773169692323,0.001,2043.0,2042.1,2.40800653]
[1773169692524,0.001,2043.0,2041.9,1.70732732]
[1773169692817,0.001,2043.0,2042.1,2.89098398]
[1773169693818,0.001,2043.0,2042.1,0.48297745]
[1773169694013,0.45149937,2043.0,2041.9,1.22434987]
[1773169694656,0.45049937,2042.8,2041.7,1.70741126]
[1773169695113,0.45049937,2042.8,2041.5,1.22458976]
[1773169695316,0.45049937,2042.8,2041.5,1.70756721]
[1773169695485,0.001,2043.0,2042.3,2.40800653]
[1773169695683,1.22469353,2043.0,2042.1,0.48297745]
[1773169695925,1.22469353,2043.0,2042.1,2.89098398]
[1773169696217,1.22469099,2043.0,2042.4,2.40800653]
[1773169696621,0.001,2043.0,2042.5,1.2239902]
[1773169697190,0.001,2043.0,2042.7,2.40800653]
[1773169697503,4.89387407,2043.8,2043.2,0.48297745]
[1773169697504,0.001,2043.8,2043.2,0.48297745]
[1773169697822,0.45049937,2044.5,2043.4,0.48297745]
[1773169698019,0.45049937,2044.4,2043.4,0.48297745]
[1773169698191,0.45049937,2044.4,2043.0,2.40800653]
[1773169698192,0.45049937,2044.4,2043.3,1.035]
[1773169698388,0.45049937,2044.4,2043.5,2.40800653]
[1773169698609,0.45049937,2044.4,2042.6,1.75582952]
[1773169698610,0.45049937,2044.0,2042.6,1.75582952]
[1773169698802,0.45049937,2044.0,2042.6,1.70687231]
[1773169699211,0.45049937,2044.0,2042.8,2.89098398]
[1773169699506,0.45049937,2044.0,2042.8,0.48297745]
[1773169699830,1.065,2044.1,2041.9,0.46078608]
[1773169699831,0.49552849,2043.4,2041.9,0.46078608]
[1773169700196,0.49552849,2043.4,2042.0,0.50975767]
[1773169700397,0.49552849,2043.4,2042.0,0.46078608]
[1773169701029,1.71903947,2043.3,2042.1,1.22422995]
[1773169701233,0.49552849,2043.1,2041.8,1.22436647]
[1773169701600,0.49552849,2043.1,2041.9,0.04897399]
[1773169701797,0.49552849,2043.1,2042.0,2.40800653]
[1773169702333,1.22351098,2043.3,2042.1,0.46078608]
[1773169702627,1.22351098,2043.3,2042.1,2.86879261]
[1773169702838,1.22351098,2043.3,2042.1,0.46078608]
[1773169703030,4.89404394,2043.4,2042.2,1.22417001]
[1773169703338,0.49552849,2043.0,2041.5,4.21285701]
[1773169703495,0.49552849,2043.0,2041.6,0.04898119]
[1773169703692,0.49552849,2042.8,2041.6,0.04898119]
[1773169704428,0.49552849,2042.8,2041.5,4.21285701]
[1773169705093,0.49552849,2042.6,2041.5,4.21285701]
[1773169705542,1.22387036,2042.7,2041.5,4.67364309]
[1773169705702,5.39070565,2042.9,2041.6,0.46078608]
[1773169705913,5.39070565,2042.9,2042.0,2.39786861]
[1773169705914,1.71927904,2042.9,2042.0,2.39786861]
[1773169706222,1.22375055,2042.9,2042.0,2.39786861]
[1773169706420,1.2237289,2043.0,2042.0,2.39786861]
[1773169706633,0.49552849,2042.9,2041.8,0.46078608]
[1773169707004,0.49552849,2042.9,2041.8,2.85865469]
[1773169708437,1.71931435,2042.9,2041.9,1.22434987]
[1773169708939,0.49326543,2042.9,2041.5,2.98829798]
[1773169709103,0.49326543,2042.8,2041.6,1.22452183]
[1773169709663,0.49326543,2042.7,2041.6,1.22452183]
[1773169710300,0.49326543,2042.5,2041.5,4.2128655]
[1773169711424,0.49326543,2042.5,2041.5,4.21288568]
[1773169712222,0.49326543,2042.5,2041.8,0.0011]
[1773169712815,1.71731556,2042.4,2041.8,0.0011]
[1773169713236,0.49326543,2041.8,2040.9,0.0011]
[1773169713438,0.49326543,2041.8,2040.9,1.22824754]
[1773169713620,0.49326543,2041.8,2040.9,0.0033]
[1773169714349,0.49326543,2041.8,2040.9,1.22823756]
[1773169714515,0.49326543,2041.8,2040.9,0.0033]
[1773169714854,1.2244698,2041.7,2040.9,0.0033]
[1773169715625,1.71773523,2041.7,2040.9,0.0033]
[1773169716320,1.2244698,2041.7,2040.9,0.0033]
[1773169716751,1.2244698,2041.7,2040.9,1.0503]
[1773169716955,1.2244698,2041.7,2040.9,2.27519525]
[1773169717178,3.07086353,2041.9,2040.9,2.27519525]
[1773169717179,4.29525372,2041.9,2040.9,2.27519525]
[1773169718431,4.29525372,2041.9,2040.9,2.27299525]
[1773169718862,1.22439019,2041.9,2041.0,0.0247336]
[1773169719030,1.22432528,2042.0,2041.0,0.47614882]
[1773169719229,1.22427615,2042.1,2041.0,0.47614882]
[1773169719451,1.22427615,2042.1,2041.1,1.048]
[1773169719758,1.74545265,2042.3,2041.3,0.47394882]
[1773169719986,1.74545265,2042.3,2040.6,1.22621915]
[1773169719987,2.39786861,2041.6,2040.6,1.22621915]
[1773169720254,0.49326543,2041.5,2040.6,1.22621915]
[1773169720454,0.49326543,2041.5,2040.6,0.0011]
[1773169720823,1.22464975,2041.4,2040.6,0.0011]
[1773169721033,1.71791518,2041.4,2040.6,0.0011]
[1773169722967,0.49326543,2041.3,2040.6,0.0011]
[1773169723368,0.49326543,2041.3,2040.2,4.90124001]
[1773169723369,0.49326543,2040.6,2039.2,1.55747716]
[1773169723572,0.49326543,2040.6,2039.3,4.90351724]
[1773169724144,2.89113404,2040.3,2039.4,1.05]
[1773169724340,0.49326543,2040.3,2039.0,1.70111261]
[1773169724720,0.49326543,2040.3,2039.1,1.05]
[1773169724832,0.49326543,2040.3,2039.0,1.70111261]
[1773169725039,1.71863549,2040.2,2039.2,1.05]
[1773169726173,2.39786861,2040.0,2039.0,0.0011]
[1773169726470,2.89113404,2040.0,2039.1,1.051]
[1773169726876,1.22537006,2040.2,2039.1,1.051]
[1773169727037,0.47011425,2040.2,2039.1,1.051]
[1773169727352,2.86798286,2040.1,2039.2,1.051]
[1773169727848,0.47011425,2040.1,2039.2,1.051]
[1773169728477,0.47011425,2040.1,2039.3,1.052]
[1773169729080,0.47011425,2039.9,2039.0,0.0011]
[1773169729281,0.47011425,2039.9,2039.0,1.0531]
[1773169729580,1.22549019,2040.0,2039.0,2.27918112]
[1773169730282,4.90103473,2040.4,2039.3,0.46023603]
[1773169730486,1.22524995,2040.4,2039.4,0.46023603]
[1773169731249,1.22524995,2040.4,2039.6,0.46023603]
[1773169731455,1.22506982,2040.7,2039.6,0.46023603]
[1773169731677,1.22506982,2040.7,2039.7,0.04902681]
[1773169731865,1.22506982,2040.7,2039.8,1.052]
[1773169732485,1.22506982,2040.7,2039.7,0.46023603]
[1773169732790,4.0897041,2040.7,2039.8,1.052]
[1773169734285,4.0897041,2040.7,2039.8,2.27760349]
[1773169734463,1.69183549,2040.7,2039.8,2.27760349]
[1773169734655,1.22488975,2041.0,2039.9,0.46023603]
[1773169735286,1.22488975,2041.0,2040.0,1.052]
[1773169735472,1.22488975,2041.0,2040.0,1.51223603]
[1773169735987,1.22488975,2041.0,2040.0,0.46023603]
[1773169736199,4.89977798,2041.1,2040.1,1.052]
[1773169736486,0.46676567,2041.0,2040.2,1.052]
[1773169737262,4.89977798,2041.1,2040.2,1.052]
[1773169738201,4.89977798,2041.1,2040.2,2.2773263]
[1773169738503,0.001,2040.8,2039.9,0.46023603]
[1773169738686,0.001,2040.8,2040.0,1.052]
[1773169740967,0.001,2040.8,2040.1,1.051]
[1773169741371,0.46776567,2040.8,2040.1,1.051]
[1773169742398,0.001,2040.8,2040.1,1.051]
[1773169742558,0.46776567,2040.8,2039.7,0.46023603]
[1773169742759,0.46776567,2040.8,2039.8,1.051]
[1773169742989,1.22506982,2040.7,2039.8,2.27657366]
[1773169743200,0.46676567,2040.6,2039.5,0.0011]
[1773169743503,0.46676567,2040.2,2039.5,0.0011]
[1773169745302,1.69219579,2040.1,2039.5,0.0011]
[1773169748007,2.39786861,2039.8,2039.4,1.05]
[1773169748172,0.46676567,2040.0,2039.4,1.05]
[1773169748871,3.62329873,2040.1,2039.4,1.05]
[1773169748872,1.22543012,2040.1,2039.4,1.05]
[1773169749482,1.22543012,2040.1,2039.5,1.05]
[1773169749877,4.90124537,2040.3,2039.5,2.27579039]
[1773169750068,4.90124537,2040.3,2039.5,2.73602642]
[1773169750069,1.22537006,2040.2,2039.5,2.73602642]
[1773169750585,0.44303844,2040.1,2039.5,2.73602642]
[1773169750785,1.22537006,2040.2,2039.7,0.0011]
[1773169750992,0.001,2040.0,2039.7,0.0011]
[1773169752117,4.90078018,2040.5,2039.8,1.05]
[1773169752280,0.91021421,2040.4,2039.7,0.0011]
[1773169752483,0.91021421,2040.3,2039.8,1.05]
[1773169752684,0.44344854,2040.2,2039.8,1.05]
[1773169752910,0.44344854,2040.1,2039.8,1.05]
[1773169753083,4.90078018,2040.5,2039.8,1.05]
[1773169753297,0.44371983,2040.4,2039.8,1.05]
[1773169753486,2.86463428,2040.2,2039.5,1.0511]
[1773169753683,0.44371983,2040.1,2039.5,1.0511]
[1773169753884,1.22555027,2039.9,2039.5,1.0511]